fUST/lending_fUST_20250227
["ID","MTS","AMOUNT","RATE_DAILY","PERIOD"]
[354655256,1740603691198,-500.0,0.00052328,120]
[354655257,1740603691256,-500.0,0.00052328,120]
[354655258,1740603691312,-500.0,0.00052328,120]
[354655259,1740603691369,-500.0,0.00052328,120]
[354655260,1740603691428,-500.0,0.00052328,120]
[354655261,1740603691484,-411.70157176,0.00052328,120]
[354655262,1740603691543,-500.0,0.00052328,120]
[354655263,1740603691601,-500.0,0.00052328,120]
[354655264,1740603691662,-500.0,0.00052328,120]
[354655265,1740603691723,-621.72578956,0.00052328,120]
[354655266,1740603691786,-500.0,0.00052328,120]
[354655267,1740603691845,-321.92101111,0.00052328,120]
[354655268,1740603691903,-500.0,0.000526,120]
[354655269,1740603691965,-691.84,0.000526,120]
[354655270,1740603692121,-500.0,0.000526,120]
[354655271,1740603692185,-1340.83,0.000526,120]
[354655272,1740603692242,-500.0,0.000526,120]
[354655273,1740603692298,-500.0,0.000526,120]
[354655274,1740603692353,-500.0,0.000526,120]
[354655275,1740603692412,-500.0,0.000526,120]
[354655276,1740603692469,-500.0,0.000526,120]
[354655277,1740603692526,-500.0,0.000526,120]
[354655278,1740603692582,-500.0,0.000526,120]
[354655279,1740603692641,-500.0,0.000526,120]
[354655280,1740603692701,-500.0,0.000526,120]
[354655281,1740603692759,-4372.88,0.000526,120]
[354655282,1740603692815,-500.0,0.000526,120]
[354655283,1740603692872,-500.0,0.000526,120]
[354655284,1740603692931,-500.0,0.000526,120]
[354655285,1740603692989,-500.0,0.000526,120]
[354655286,1740603693051,-500.0,0.000526,120]
[354655287,1740603693114,-500.0,0.000526,120]
[354655288,1740603693176,-500.0,0.000526,120]
[354655289,1740603693239,-500.0,0.000526,120]
[354655290,1740603693302,-500.0,0.000526,120]
[354655291,1740603693370,-500.0,0.000526,120]
[354655292,1740603693436,-500.0,0.000526,120]
[354655293,1740603693498,-500.0,0.000526,120]
[354655294,1740603693560,-500.0,0.00052601,120]
[354655295,1740603693620,-500.0,0.00052601,120]
[354655296,1740603693685,-500.0,0.00052601,120]
[354655297,1740603693744,-500.0,0.00052601,30]
[354655298,1740603693803,-509.0801078,0.00052601,120]
[354655299,1740603693862,-500.0,0.00052601,120]
[354655300,1740603693928,-500.0,0.00052601,120]
[354655301,1740603693989,-500.0,0.00052601,120]
[354655302,1740603694050,-500.0,0.00052601,120]
[354655303,1740603694113,-595.04,0.00052601,120]
[354655304,1740603694177,-500.0,0.00052601,120]
[354655305,1740603694240,-500.0,0.00052601,120]
[354655306,1740603694302,-500.0,0.00052601,45]
[354655307,1740603694364,-500.0,0.00052601,120]
[354655308,1740603694423,-500.0,0.00052601,120]
[354655309,1740603694480,-500.0,0.00052601,120]
[354655310,1740603694540,-1609.22,0.00052601,120]
[354655311,1740603694599,-500.0,0.00052601,120]
[354655312,1740603694659,-500.0,0.00052601,120]
[354655313,1740603694718,-500.0,0.00052601,120]
[354655314,1740603694777,-500.47,0.00052601,120]
[354655315,1740603694834,-379.51,0.00052601,120]
[354655316,1740603694891,-500.0,0.00052601,120]
[354655317,1740603694947,-400.19,0.00052601,120]
[354655318,1740603695005,-500.0,0.00052601,120]
[354655319,1740603695062,-500.0,0.00052601,120]
[354655320,1740603695118,-500.0,0.00052601,120]
[354655321,1740603695174,-504.6875701,0.00052601,120]
[354655322,1740603695229,-505.32411389,0.00052601,120]
[354655323,1740603695284,-650.05,0.00052602,15]
[354655324,1740603695339,-500.0,0.00052602,120]
[354655325,1740603695396,-500.0,0.00052602,120]
[354655326,1740603695453,-500.0,0.00052602,120]
[354655327,1740603695512,-500.0,0.00052602,120]
[354655328,1740603695571,-500.0,0.00052602,120]
[354655329,1740603695629,-500.0,0.00052602,120]
[354655330,1740603695690,-500.0,0.00052602,120]
[354655331,1740603695749,-500.0,0.00052602,120]
[354655332,1740603695809,-500.0,0.00052602,120]
[354655333,1740603695870,-546.29,0.00052602,120]
[354655334,1740603695932,-676.49,0.00052602,120]
[354655335,1740603695990,-531.0,0.00052602,120]
[354655336,1740603696047,-500.0,0.00052602,120]
[354655337,1740603696106,-183.2,0.00052602,120]
[354655338,1740603696164,-500.0,0.00052602,120]
[354655339,1740603696220,-500.0,0.00052602,120]
[354655340,1740603696275,-500.0,0.00052602,120]
[354655341,1740603696331,-294.19,0.00052602,120]
[354655342,1740603696388,-239.17951467,0.00052602,120]
[354655343,1740603696443,-500.0,0.00052602,120]
[354655344,1740603696507,-500.0,0.00052602,120]
[354655345,1740603696571,-500.0,0.00052602,120]
[354655346,1740603696630,-500.0,0.00052602,120]
[354655347,1740603696784,-314.46080446,0.00052873,10]
[354655348,1740603696842,-500.0,0.00052874,120]
[354655349,1740603696901,-691.84,0.00052874,120]
[354655350,1740603696959,-500.0,0.00052874,120]
[354655351,1740603697016,-1340.83,0.00052874,120]
[354655352,1740603697074,-500.0,0.00052874,120]
[354655353,1740603697132,-500.0,0.00052874,120]
[354655354,1740603697194,-500.0,0.00052874,120]
[354655355,1740603697256,-500.0,0.00052874,120]
[354655356,1740603697314,-500.0,0.00052874,120]
[354655357,1740603697373,-500.0,0.00052874,120]
[354655358,1740603697434,-500.0,0.00052874,120]
[354655359,1740603697491,-500.0,0.00052874,120]
[354655360,1740603697549,-4372.88,0.00052874,120]
[354655361,1740603697609,-500.0,0.00052874,120]
[354655362,1740603697669,-500.0,0.00052874,120]
[354655363,1740603697727,-500.0,0.00052874,120]
[354655364,1740603697785,-500.0,0.00052874,120]
[354655365,1740603697843,-500.0,0.00052874,120]
[354655366,1740603697901,-500.0,0.00052874,120]
[354655367,1740603697959,-500.0,0.00052874,120]
[354655368,1740603698018,-500.0,0.00052874,120]
[354655369,1740603698077,-500.0,0.00052874,120]
[354655370,1740603698139,-500.0,0.00052874,120]
[354655371,1740603698199,-500.0,0.00052874,120]
[354655372,1740603698257,-500.0,0.00052874,120]
[354655373,1740603698314,-500.0,0.00052875,120]
[354655374,1740603698370,-500.0,0.00052875,120]
[354655375,1740603698429,-500.0,0.00052875,120]
[354655376,1740603698487,-232.8699984,0.00052875,30]
[354655377,1740603698542,-171.58992146,0.00052875,120]
[354655378,1740603698598,-500.0,0.00052875,120]
[354655379,1740603698658,-500.0,0.00052875,120]
[354655380,1740603698715,-500.0,0.00052875,120]
[354655381,1740603698771,-500.0,0.00052875,120]
[354655382,1740603698829,-500.0,0.00052875,120]
[354655383,1740603698884,-500.0,0.00052875,45]
[354655384,1740603698942,-500.0,0.00052875,120]
[354655385,1740603699000,-500.0,0.00052875,120]
[354655386,1740603699064,-500.0,0.00052875,120]
[354655387,1740603699125,-1609.22,0.00052875,120]
[354655388,1740603699184,-500.0,0.00052875,120]
[354655389,1740603699241,-500.0,0.00052875,120]
[354655390,1740603699296,-500.0,0.00052875,120]
[354655391,1740603699354,-500.47,0.00052875,120]
[354655392,1740603699412,-500.0,0.00052875,120]
[354655393,1740603699468,-500.0,0.00052875,120]
[354655394,1740603699523,-500.0,0.00052875,120]
[354655395,1740603699580,-500.0,0.00052875,120]
[354655396,1740603699632,-500.0,0.00052876,120]
[354655397,1740603699688,-650.05,0.00052876,15]
[354655398,1740603699742,-500.0,0.00052876,120]
[354655399,1740603699799,-500.0,0.00052876,120]
[354655400,1740603699861,-500.0,0.00052876,120]
[354655401,1740603699920,-500.0,0.00052876,120]
[354655402,1740603699979,-500.0,0.00052876,120]
[354655403,1740603700037,-500.0,0.00052876,120]
[354655404,1740603700093,-500.0,0.00052876,120]
[354655405,1740603700150,-500.0,0.00052876,120]
[354655406,1740603700207,-500.0,0.00052876,120]
[354655407,1740603700265,-546.29,0.00052876,120]
[354655408,1740603700319,-676.49,0.00052876,120]
[354655409,1740603700376,-342.09,0.00052876,120]
[354655410,1740603700432,-500.0,0.00052876,120]
[354655411,1740603700485,-500.0,0.00052876,120]
[354655412,1740603700537,-500.0,0.00052876,120]
[354655413,1740603700591,-500.0,0.00052876,120]
[354655414,1740603700647,-500.0,0.00052876,120]
[354655415,1740603700702,-500.0,0.00052876,120]
[354655416,1740603700758,-500.0,0.00052876,120]
[354655417,1740603700813,-686.4216715,0.000529,12]
[354655418,1740603700866,-500.0,0.00053148,120]
[354655419,1740603700922,-691.84,0.00053148,120]
[354655420,1740603700976,-500.0,0.00053148,120]
[354655421,1740603701106,-1340.83,0.00053148,120]
[354655422,1740603701179,-500.0,0.00053148,120]
[354655423,1740603701232,-500.0,0.00053148,120]
[354655424,1740603701284,-500.0,0.00053148,120]
[354655425,1740603701335,-500.0,0.00053148,120]
[354655426,1740603701388,-469.92,0.00053148,120]
[354655427,1740603701448,-500.0,0.00053148,120]
[354655428,1740603701504,-500.0,0.00053148,120]
[354655429,1740603701560,-500.0,0.00053148,120]
[354655430,1740603701615,-4372.88,0.00053148,120]
[354655431,1740603701675,-500.0,0.00053148,120]
[354655432,1740603701735,-500.0,0.00053148,120]
[354655433,1740603701792,-500.0,0.00053148,120]
[354655434,1740603701848,-500.0,0.00053148,120]
[354655435,1740603701903,-351.10676789,0.00053148,120]
[354655436,1740603701958,-500.0,0.00053148,120]
[354655437,1740603702013,-500.0,0.00053148,120]
[354655438,1740603702068,-500.0,0.00053148,120]
[354655439,1740603702121,-500.0,0.00053148,120]
[354655440,1740603702176,-500.0,0.00053148,120]
[354655441,1740603702228,-500.0,0.00053148,120]
[354655442,1740603702282,-500.0,0.00053148,120]
[354655443,1740603702336,-500.0,0.00053149,120]
[354655444,1740603702395,-500.0,0.00053149,120]
[354655445,1740603702456,-175.28605709,0.00053149,120]
[354655446,1740603702515,-500.0,0.00053149,120]
[354655447,1740603702573,-500.0,0.00053149,120]
[354655448,1740603702630,-260.5996184,0.00053149,120]
[354655449,1740603702695,-500.0,0.00053149,120]
[354655450,1740603702753,-466.3660452,0.00053149,120]
[354655451,1740603702812,-500.0,0.00053149,120]
[354655452,1740603702871,-500.0,0.00053149,120]
[354655453,1740603702930,-500.0,0.00053149,120]
[354655454,1740603702987,-574.43700198,0.00053149,120]
[354655455,1740603703046,-500.0,0.00053149,120]
[354655456,1740603703100,-500.0,0.00053149,120]
[354655457,1740603703154,-500.0,0.00053149,120]
[354655458,1740603703209,-500.0,0.00053149,120]
[354655459,1740603703275,-500.0,0.00053149,120]
[354655460,1740603703335,-500.0,0.00053149,120]
[354655461,1740603703399,-500.0,0.00053149,120]
[354655462,1740603703466,-500.0,0.00053149,120]
[354655463,1740603703531,-500.0,0.00053149,120]
[354655464,1740603703592,-500.0,0.00053149,45]
[354655465,1740603703659,-500.0,0.00053149,120]
[354655466,1740603703721,-500.0,0.00053149,120]
[354655467,1740603703786,-500.0,0.00053149,120]
[354655468,1740603703854,-1609.22,0.00053149,120]
[354655469,1740603703926,-500.0,0.00053149,120]
[354655470,1740603703990,-500.0,0.00053149,120]
[354655471,1740603704057,-500.0,0.00053149,120]
[354655472,1740603704127,-500.47,0.00053149,120]
[354655473,1740603704198,-500.0,0.00053149,120]
[354655474,1740603704262,-584.51580186,0.00053149,120]
[354655475,1740603704325,-320.3959133,0.00053149,120]
[354655476,1740603704389,-500.0,0.00053149,120]
[354655477,1740603704456,-500.0,0.0005315,120]
[354655478,1740603704522,-650.05,0.0005315,15]
[354655479,1740603704588,-500.0,0.0005315,120]
[354655480,1740603704658,-500.0,0.0005315,120]
[354655481,1740603704726,-500.0,0.0005315,120]
[354655482,1740603704793,-500.0,0.0005315,120]
[354655483,1740603704857,-500.0,0.0005315,120]
[354655484,1740603704921,-500.0,0.0005315,120]
[354655485,1740603704987,-500.0,0.0005315,120]
[354655486,1740603705053,-500.0,0.0005315,120]
[354655487,1740603705119,-500.0,0.0005315,120]
[354655488,1740603705191,-546.29,0.0005315,120]
[354655489,1740603705256,-676.49,0.0005315,120]
[354655490,1740603705319,-500.0,0.0005315,120]
[354655491,1740603705384,-500.0,0.0005315,120]
[354655492,1740603705452,-500.0,0.0005315,120]
[354655493,1740603705520,-500.0,0.0005315,120]
[354655494,1740603705715,-500.0,0.0005315,120]
[354655495,1740603705781,-500.0,0.0005315,120]
[354655496,1740603705841,-500.0,0.00053422,120]
[354655497,1740603705904,-691.84,0.00053422,120]
[354655498,1740603705965,-500.0,0.00053422,120]
[354655499,1740603706024,-1340.83,0.00053422,120]
[354655500,1740603706084,-500.0,0.00053422,120]
[354655501,1740603706145,-500.0,0.00053422,120]
[354655502,1740603706211,-500.0,0.00053422,120]
[354655503,1740603706272,-500.0,0.00053422,120]
[354655504,1740603706330,-500.0,0.00053422,120]
[354655505,1740603706389,-526.33,0.00053422,120]
[354655506,1740603706448,-4372.88,0.00053422,120]
[354655507,1740603706508,-500.0,0.00053422,120]
[354655508,1740603706567,-500.0,0.00053422,120]
[354655509,1740603706626,-500.0,0.00053422,120]
[354655510,1740603706693,-500.0,0.00053422,120]
[354655511,1740603706752,-500.0,0.00053422,120]
[354655512,1740603706810,-500.0,0.00053422,120]
[354655513,1740603706866,-500.0,0.00053422,120]
[354655514,1740603706924,-540.32,0.00053422,120]
[354655515,1740603706982,-500.0,0.00053422,120]
[354655517,1740603707039,-500.0,0.00053422,120]
[354655520,1740603707098,-500.0,0.00053422,120]
[354655521,1740603707156,-500.0,0.00053423,120]
[354655522,1740603707212,-375.32222947,0.00053423,120]
[354655523,1740603707268,-408.40652203,0.00053423,120]
[354655524,1740603707322,-500.0,0.00053423,120]
[354655525,1740603707379,-500.0,0.00053423,120]
[354655526,1740603707437,-500.0,0.00053423,120]
[354655527,1740603707495,-500.0,0.00053423,120]
[354655528,1740603707552,-500.0,0.00053423,120]
[354655529,1740603707609,-500.0,0.00053423,45]
[354655530,1740603707673,-500.0,0.00053423,120]
[354655531,1740603707733,-500.0,0.00053423,120]
[354655532,1740603707790,-500.0,0.00053423,120]
[354655533,1740603707848,-1609.22,0.00053423,120]
[354655534,1740603707907,-500.0,0.00053423,120]
[354655535,1740603707964,-500.0,0.00053423,120]
[354655536,1740603708020,-500.0,0.00053423,120]
[354655537,1740603708079,-500.0,0.00053423,120]
[354655538,1740603708139,-500.0,0.00053423,120]
[354655539,1740603708204,-500.47,0.00053423,120]
[354655540,1740603708264,-500.0,0.00053423,120]
[354655541,1740603708322,-500.0,0.00053423,120]
[354655542,1740603708382,-500.0,0.00053423,120]
[354655543,1740603708445,-650.05,0.00053424,15]
[354655544,1740603708504,-500.0,0.00053424,120]
[354655545,1740603708563,-553.3441229,0.00053424,120]
[354655546,1740603708620,-500.0,0.00053424,120]
[354655547,1740603708677,-500.0,0.00053424,120]
[354655548,1740603708739,-500.0,0.00053424,120]
[354655549,1740603708798,-253.58,0.00053424,120]
[354655550,1740603708857,-500.0,0.00053424,120]
[354655551,1740603708921,-500.0,0.00053424,120]
[354655552,1740603708985,-500.0,0.00053424,120]
[354655553,1740603709051,-546.29,0.00053424,120]
[354655554,1740603709119,-676.49,0.00053424,120]
[354655555,1740603709182,-500.0,0.00053424,120]
[354655556,1740603709245,-500.0,0.00053424,120]
[354655557,1740603709303,-500.0,0.00053424,120]
[354655558,1740603709363,-500.0,0.00053424,120]
[354655559,1740603709419,-500.0,0.00053424,120]
[354655560,1740603709475,-500.0,0.00053424,120]
[354655561,1740603709529,-500.0,0.00053473,10]
[354655562,1740603709588,-500.0,0.00053473,10]
[354655563,1740603709645,-500.0,0.00053487,10]
[354655564,1740603709709,-155.41,0.000535,30]
[354655565,1740603709764,-254.92918016,0.00053559,30]
[354655566,1740603709819,-500.0,0.00053559,30]
[354655567,1740603709873,-500.0,0.00053696,120]
[354655568,1740603709931,-691.84,0.00053696,120]
[354655569,1740603709992,-500.0,0.00053696,120]
[354655570,1740603710056,-1340.83,0.00053696,120]
[354655571,1740603710115,-246.99,0.00053696,120]
[354655572,1740603710177,-246.78,0.00053696,120]
[354655573,1740603710238,-500.0,0.00053696,120]
[354655574,1740603710296,-500.0,0.00053696,120]
[354655575,1740603710351,-500.0,0.00053696,120]
[354655576,1740603710407,-4372.88,0.00053696,120]
[354655577,1740603710461,-500.0,0.00053696,120]
[354655578,1740603710513,-500.0,0.00053696,120]
[354655579,1740603710574,-500.0,0.00053696,120]
[354655580,1740603710632,-500.0,0.00053696,120]
[354655581,1740603710704,-500.0,0.00053696,120]
[354655582,1740603710764,-500.0,0.00053696,120]
[354655583,1740603710934,-500.0,0.00053696,120]
[354655584,1740603710991,-500.0,0.00053696,120]
[354655585,1740603711047,-500.0,0.00053696,120]
[354655586,1740603711096,-500.0,0.00053696,120]
[354655587,1740603711145,-500.0,0.00053697,120]
[354655588,1740603711195,-500.0,0.00053697,120]
[354655589,1740603711243,-500.0,0.00053697,120]
[354655590,1740603711294,-500.0,0.00053697,120]
[354655591,1740603711345,-500.0,0.00053697,120]
[354655592,1740603711395,-267.42,0.00053697,120]
[354655593,1740603711445,-500.0,0.00053697,45]
[354655594,1740603711493,-500.0,0.00053697,120]
[354655595,1740603711542,-500.0,0.00053697,120]
[354655596,1740603711598,-500.0,0.00053697,120]
[354655597,1740603711659,-1609.22,0.00053697,120]
[354655598,1740603711717,-500.0,0.00053697,120]
[354655599,1740603711770,-500.0,0.00053697,120]
[354655600,1740603711822,-500.0,0.00053697,120]
[354655601,1740603711874,-500.47,0.00053697,120]
[354655602,1740603711924,-502.64896479,0.00053697,120]
[354655603,1740603711985,-500.0,0.00053697,120]
[354655604,1740603712045,-650.05,0.00053698,15]
[354655605,1740603712102,-500.0,0.00053698,120]
[354655606,1740603712158,-500.0,0.00053698,120]
[354655607,1740603712210,-500.0,0.00053698,120]
[354655608,1740603712261,-500.0,0.00053698,120]
[354655609,1740603712310,-500.0,0.00053698,120]
[354655610,1740603712358,-500.0,0.00053698,120]
[354655611,1740603712409,-500.0,0.00053698,120]
[354655612,1740603712462,-546.29,0.00053698,120]
[354655613,1740603712510,-676.49,0.00053698,120]
[354655614,1740603712561,-500.0,0.00053698,120]
[354655615,1740603712616,-500.0,0.00053698,120]
[354655616,1740603712672,-500.0,0.00053698,120]
[354655617,1740603712728,-500.0,0.00053698,120]
[354655618,1740603712783,-500.0,0.00053698,120]
[354655619,1740603712836,-500.0,0.00053698,120]
[354655620,1740603712889,-500.0,0.0005397,120]
[354655621,1740603712944,-7136.21,0.0005397,120]
[354655622,1740603712997,-691.84,0.0005397,120]
[354655623,1740603713049,-500.0,0.0005397,120]
[354655624,1740603713103,-1340.83,0.0005397,120]
[354655625,1740603713159,-500.0,0.0005397,120]
[354655626,1740603713214,-500.0,0.0005397,120]
[354655627,1740603713266,-500.0,0.0005397,120]
[354655628,1740603713318,-4372.88,0.0005397,120]
[354655629,1740603713374,-500.0,0.0005397,120]
[354655630,1740603713425,-500.0,0.0005397,120]
[354655631,1740603713477,-500.0,0.0005397,120]
[354655632,1740603713529,-500.0,0.0005397,120]
[354655633,1740603713581,-208.98017624,0.0005397,120]
[354655634,1740603713632,-500.0,0.0005397,120]
[354655635,1740603713682,-500.0,0.0005397,120]
[354655636,1740603713735,-286.69333769,0.0005397,120]
[354655637,1740603713785,-500.4,0.0005397,120]
[354655638,1740603713836,-500.0,0.0005397,120]
[354655639,1740603713891,-500.0,0.00053971,120]
[354655640,1740603713945,-500.0,0.00053971,120]
[354655641,1740603714001,-184.44,0.00053971,120]
[354655642,1740603714061,-500.0,0.00053971,120]
[354655643,1740603714124,-500.0,0.00053971,120]
[354655644,1740603714184,-500.0,0.00053971,45]
[354655645,1740603714239,-500.0,0.00053971,120]
[354655646,1740603714295,-500.0,0.00053971,120]
[354655647,1740603714352,-500.0,0.00053971,120]
[354655648,1740603714413,-1609.22,0.00053971,120]
[354655649,1740603714464,-500.0,0.00053971,120]
[354655650,1740603714513,-500.0,0.00053971,120]
[354655651,1740603714560,-500.0,0.00053971,120]
[354655652,1740603714607,-500.47,0.00053971,120]
[354655653,1740603714656,-500.0,0.00053971,120]
[354655654,1740603714704,-650.05,0.00053972,15]
[354655655,1740603714750,-597.63873354,0.00053972,120]
[354655656,1740603714797,-500.0,0.00053972,120]
[354655657,1740603714845,-500.0,0.00053972,120]
[354655658,1740603714893,-500.0,0.00053972,120]
[354655659,1740603714941,-500.0,0.00053972,120]
[354655660,1740603714992,-500.0,0.00053972,120]
[354655661,1740603715042,-500.0,0.00053972,120]
[354655662,1740603715091,-546.29,0.00053972,120]
[354655663,1740603715138,-676.49,0.00053972,120]
[354655664,1740603715188,-500.0,0.00053972,120]
[354655665,1740603715238,-500.0,0.00053972,120]
[354655666,1740603715285,-423.49051717,0.00053972,120]
[354655667,1740603715330,-500.0,0.00053972,120]
[354655668,1740603715374,-500.0,0.00053972,120]
[354655669,1740603715425,-500.0,0.00053972,120]
[354655670,1740603715591,-151.29,0.00054,30]
[354655671,1740603715641,-151.0,0.00054,120]
[354655672,1740603715702,-500.0,0.00054107,30]
[354655673,1740603715754,-500.0,0.00054244,120]
[354655674,1740603715806,-691.84,0.00054244,120]
[354655675,1740603715858,-500.0,0.00054244,120]
[354655676,1740603715913,-1340.83,0.00054244,120]
[354655677,1740603715966,-500.0,0.00054244,120]
[354655678,1740603716017,-500.0,0.00054244,120]
[354655679,1740603716069,-500.0,0.00054244,120]
[354655680,1740603716123,-4372.88,0.00054244,120]
[354655681,1740603716177,-500.0,0.00054244,120]
[354655682,1740603716231,-500.0,0.00054244,120]
[354655683,1740603716284,-500.0,0.00054244,120]
[354655684,1740603716336,-500.0,0.00054244,120]
[354655685,1740603716391,-500.0,0.00054244,120]
[354655686,1740603716447,-308.88,0.00054244,120]
[354655687,1740603716501,-500.0,0.00054245,120]
[354655688,1740603716554,-500.0,0.00054245,120]
[354655689,1740603716606,-500.0,0.00054245,120]
[354655690,1740603716660,-236.62,0.00054245,120]
[354655691,1740603716719,-500.0,0.00054245,45]
[354655692,1740603716774,-424.42217427,0.00054245,120]
[354655693,1740603716827,-500.0,0.00054245,120]
[354655694,1740603716878,-500.0,0.00054245,120]
[354655695,1740603716927,-1609.22,0.00054245,120]
[354655696,1740603716976,-500.0,0.00054245,120]
[354655697,1740603717025,-500.0,0.00054245,120]
[354655698,1740603717074,-500.0,0.00054245,120]
[354655699,1740603717124,-500.47,0.00054245,120]
[354655700,1740603717174,-500.0,0.00054245,120]
[354655701,1740603717224,-650.05,0.00054246,15]
[354655702,1740603717273,-500.0,0.00054246,120]
[354655703,1740603717327,-500.0,0.00054246,120]
[354655704,1740603717382,-500.0,0.00054246,120]
[354655705,1740603717433,-500.0,0.00054246,120]
[354655706,1740603717486,-500.0,0.00054246,120]
[354655707,1740603717535,-500.0,0.00054246,120]
[354655708,1740603717586,-546.29,0.00054246,120]
[354655709,1740603717635,-676.49,0.00054246,120]
[354655710,1740603717695,-500.0,0.00054246,120]
[354655711,1740603717753,-500.0,0.00054246,120]
[354655712,1740603717815,-500.0,0.00054246,120]
[354655713,1740603717868,-365.58,0.00054246,120]
[354655714,1740603717917,-500.0,0.00054246,120]
[354655715,1740603717965,-252.21,0.000543,30]
[354655716,1740603718015,-166.43,0.000543,30]
[354655717,1740603718065,-500.0,0.00054518,120]
[354655718,1740603718115,-691.84,0.00054518,120]
[354655719,1740603718170,-500.0,0.00054518,120]
[354655720,1740603718221,-1340.83,0.00054518,120]
[354655721,1740603718270,-500.0,0.00054518,120]
[354655722,1740603718318,-500.0,0.00054518,120]
[354655723,1740603718369,-500.0,0.00054518,120]
[354655724,1740603718427,-4372.88,0.00054518,120]
[354655725,1740603718480,-500.0,0.00054518,120]
[354655726,1740603718527,-500.0,0.00054518,120]
[354655727,1740603718573,-500.0,0.00054518,120]
[354655728,1740603718619,-500.0,0.00054518,120]
[354655729,1740603718667,-500.0,0.00054518,120]
[354655730,1740603718716,-500.0,0.00054519,120]
[354655731,1740603718762,-500.0,0.00054519,120]
[354655732,1740603718808,-500.0,0.00054519,120]
[354655733,1740603718856,-500.0,0.00054519,45]
[354655734,1740603718905,-500.0,0.00054519,120]
[354655735,1740603718952,-500.0,0.00054519,120]
[354655736,1740603718997,-1609.22,0.00054519,120]
[354655737,1740603719041,-265.26645994,0.00054519,120]
[354655738,1740603719085,-398.49,0.00054519,120]
[354655739,1740603719129,-500.0,0.00054519,120]
[354655740,1740603719180,-500.47,0.00054519,120]
[354655741,1740603719227,-500.0,0.00054519,120]
[354655742,1740603719274,-650.05,0.0005452,15]
[354655743,1740603719319,-500.0,0.0005452,120]
[354655744,1740603719363,-500.0,0.0005452,120]
[354655745,1740603719409,-500.0,0.0005452,120]
[354655746,1740603719454,-500.0,0.0005452,120]
[354655747,1740603719498,-500.0,0.0005452,120]
[354655748,1740603719542,-500.0,0.0005452,120]
[354655749,1740603719587,-546.29,0.0005452,120]
[354655750,1740603719632,-676.49,0.0005452,120]
[354655751,1740603719676,-500.0,0.0005452,120]
[354655752,1740603719723,-500.0,0.0005452,120]
[354655753,1740603719769,-500.0,0.0005452,120]
[354655754,1740603719912,-170.4,0.0005457,120]
[354655755,1740603719973,-150.5,0.0005458,120]
[354655756,1740603720035,-150.5,0.0005459,120]
[354655757,1740603720090,-302.0,0.00054655,30]
[354655758,1740603720145,-500.0,0.00054792,120]